bitfinex/quotes_SOLUSD_20241127
["timestamp","ask_amount","ask_price","bid_price","bid_amount"]
[1732708116276,23.776884,234.74,234.58,8.38791995]
[1732708116573,8.38791995,234.66,234.58,8.38791995]
[1732708117465,8.38791995,234.66,234.51,20.85060744]
[1732708117653,8.38791995,234.66,234.57,8.38791995]
[1732708119170,8.38791995,234.62,234.39,30.82707414]
[1732708119394,8.38791995,234.62,234.53,8.38791995]
[1732708121888,20.0,234.69,234.53,8.38791995]
[1732708122086,8.38791995,234.62,234.53,8.38791995]
[1732708122584,8.38791995,234.62,234.43,0.85052347]
[1732708122585,8.38791995,234.62,234.43,20.0]
[1732708122781,8.38791995,234.6,234.53,8.38791995]
[1732708126963,20.0,234.69,234.55,8.38791995]
[1732708127166,23.776884,234.74,234.48,33.5516798]
[1732708127167,23.776884,234.74,234.57,8.38791995]
[1732708127363,23.776884,234.74,234.48,34.40216574]
[1732708127364,11.00090174,234.82,234.62,8.38791995]
[1732708127573,8.38791995,234.7,234.63,8.38791995]
[1732708127871,8.38791995,234.68,234.53,23.776884]
[1732708128071,8.38791995,234.64,234.55,8.38791995]
[1732708128264,33.5516798,234.72,234.36,6.6450575]
[1732708128265,8.38791995,234.6,234.53,8.38791995]
[1732708129567,8.38791995,234.6,234.44,23.776884]
[1732708129767,8.38791995,234.6,234.53,8.38791995]
[1732708130496,13.10086604,234.61,234.53,13.10086604]
[1732708130664,7.10086604,234.63,234.55,13.10086604]
[1732708130992,13.10086604,234.68,234.61,13.10086604]
[1732708131567,1.79655897,234.79,234.63,13.10086604]
[1732708131568,13.10086604,234.71,234.63,13.10086604]
[1732708131784,13.10086604,234.72,234.64,13.10086604]
[1732708131981,13.10086604,234.68,234.6,13.10086604]
[1732708132179,13.10086604,234.66,234.58,13.10086604]
[1732708132886,13.10086604,234.64,234.56,13.10086604]
[1732708133090,13.10086604,234.62,234.5,23.776884]
[1732708133290,13.10086604,234.62,234.54,13.10086604]
[1732708135099,13.10086604,234.64,234.56,13.10086604]
[1732708138489,13.10086604,234.62,234.54,13.10086604]
[1732708141395,13.10086604,234.6,234.52,13.10086604]
[1732708143606,13.10086604,234.56,234.48,13.10086604]
[1732708143905,13.10086604,234.54,234.46,13.10086604]
[1732708145289,13.10086604,234.52,234.44,13.10086604]
[1732708146006,13.10086604,234.5,234.42,13.10086604]
[1732708148702,13.10086604,234.54,234.47,13.10086604]
[1732708149405,1.77454304,234.6,234.46,13.10086604]
[1732708149613,13.10086604,234.54,234.47,13.10086604]
[1732708149784,13.10086604,234.57,234.5,13.10086604]
[1732708149990,13.10086604,234.59,234.52,13.10086604]
[1732708150187,13.10086604,234.6,234.52,13.10086604]
[1732708150708,13.10086604,234.59,234.52,13.10086604]
[1732708151086,1.83836905,234.71,234.56,13.10086604]
[1732708151289,1.83836905,234.71,234.48,13.10086604]
[1732708151290,13.10086604,234.67,234.59,13.10086604]
[1732708151612,13.10086604,234.67,234.6,13.10086604]
[1732708152911,13.10086604,234.67,234.59,13.10086604]
[1732708153213,13.10086604,234.63,234.55,13.10086604]
[1732708153397,13.10086604,234.63,234.56,13.10086604]
[1732708153915,13.10086604,234.64,234.56,13.10086604]
[1732708154291,13.10086604,234.65,234.57,13.10086604]
[1732708154994,13.10086604,234.67,234.59,13.10086604]
[1732708155700,13.10086604,234.67,234.48,13.95130078]
[1732708155701,13.10086604,234.64,234.56,13.10086604]
[1732708156610,13.10086604,234.66,234.58,13.10086604]
[1732708156910,13.10086604,234.66,234.59,13.10086604]
[1732708157701,13.10086604,234.66,234.57,13.10086604]
[1732708159315,13.10086604,234.64,234.55,13.10086604]
[1732708160520,13.10086604,234.64,234.57,13.10086604]
[1732708163808,13.10086604,234.66,234.57,13.10086604]
[1732708164311,8.40968376,234.77,234.61,13.10086604]
[1732708164504,13.10086604,234.7,234.61,13.10086604]
[1732708165005,13.10086604,234.7,234.63,13.10086604]
[1732708165405,13.10086604,234.7,234.61,13.10086604]
[1732708165713,6.62042596,234.8,234.67,13.10086604]
[1732708165918,13.10086604,234.75,234.67,13.10086604]
[1732708166112,19.721292,234.84,234.54,20.0]
[1732708166113,13.10086604,234.71,234.63,13.10086604]
[1732708166421,13.10086604,234.71,234.64,13.10086604]
[1732708167094,13.10086604,234.71,234.63,13.10086604]
[1732708167293,13.10086604,234.72,234.64,13.10086604]
[1732708167711,13.10086604,234.72,234.65,13.10086604]
[1732708167921,13.10086604,234.74,234.66,13.10086604]
[1732708168091,13.10086604,234.73,234.65,13.10086604]
[1732708170299,13.10086604,234.74,234.67,13.10086604]
[1732708170917,13.10086604,234.75,234.68,13.10086604]
[1732708171218,13.10086604,234.74,234.67,13.10086604]
[1732708171512,13.10086604,234.72,234.64,13.10086604]
[1732708172524,13.10086604,234.72,234.65,13.10086604]
[1732708172897,13.10086604,234.73,234.66,13.10086604]
[1732708173097,20.0,234.8,234.67,13.10086604]
[1732708173293,11.45335305,234.86,234.67,13.10086604]
[1732708173294,13.10086604,234.75,234.67,13.10086604]
[1732708174425,13.10086604,234.75,234.68,13.10086604]
[1732708174596,13.10086604,234.75,234.67,13.10086604]
[1732708174794,13.10086604,234.74,234.67,13.10086604]
[1732708178313,4.83292709,234.86,234.63,20.0]
[1732708178517,13.10086604,234.78,234.71,13.10086604]
[1732708179331,13.10086604,234.79,234.72,13.10086604]
[1732708179511,13.10086604,234.8,234.73,13.10086604]
[1732708179916,13.10086604,234.81,234.73,13.10086604]
[1732708180623,13.10086604,234.8,234.73,13.10086604]
[1732708182523,20.0,234.85,234.73,8.37045775]
[1732708182821,8.37045775,234.82,234.73,8.37045775]
[1732708183723,8.37045775,234.8,234.73,8.37045775]
[1732708185026,8.37045775,234.79,234.71,8.37045775]
[1732708185730,8.37045775,234.8,234.71,8.37045775]
[1732708185931,8.37045775,234.8,234.73,8.37045775]
[1732708186626,20.0,234.84,234.73,8.37045775]
[1732708186813,8.37045775,234.8,234.73,8.37045775]
[1732708187014,8.37045775,234.8,234.72,8.37045775]
[1732708188038,20.0,234.84,234.74,8.37045775]
[1732708188239,4.37037728,234.93,234.74,8.37045775]
[1732708188240,8.37045775,234.83,234.74,8.37045775]
[1732708188406,8.37045775,234.85,234.76,8.37045775]
[1732708189229,6.62042596,235.04,234.79,8.37045775]
[1732708189432,8.37045775,234.89,234.81,8.37045775]
[1732708189619,4.37037728,234.99,234.81,8.37045775]
[1732708190133,1.82905758,234.96,234.83,8.37045775]
[1732708190428,4.83292709,235.01,234.79,20.0]
[1732708190643,13.06503387,234.87,234.8,20.0]
[1732708190813,13.06503387,234.83,234.8,20.0]
[1732708191230,13.06503387,234.83,234.74,13.06503387]
[1732708192113,13.06503387,234.83,234.76,13.06503387]
[1732708192632,13.06503387,234.81,234.67,1.76895732]
[1732708192933,13.06503387,234.81,234.72,13.06503387]
[1732708193109,13.06503387,234.81,234.74,13.06503387]
[1732708193608,13.06503387,234.83,234.74,13.06503387]
[1732708194430,13.06503387,234.83,234.76,13.06503387]
[1732708194636,13.06503387,234.85,234.78,13.06503387]
[1732708194929,13.06503387,234.87,234.78,13.06503387]
[1732708195527,13.06503387,234.89,234.8,13.06503387]
[1732708197648,13.06503387,234.91,234.84,13.06503387]
[1732708198220,13.06503387,234.93,234.86,13.06503387]
[1732708198528,13.06503387,234.95,234.86,13.06503387]
[1732708199638,13.06503387,234.95,234.88,13.06503387]
[1732708199845,4.83292709,235.05,234.93,13.06503387]
[1732708200142,4.88471698,235.08,234.84,13.06503387]
[1732708200143,13.06503387,235.03,234.95,13.06503387]
[1732708200341,13.06503387,234.97,234.88,6.620426]
[1732708200543,13.06503387,234.95,234.88,6.620426]
[1732708200917,13.06503387,234.97,234.89,13.06503387]
[1732708202438,13.06503387,235.04,234.96,13.06503387]
[1732708203019,13.06503387,235.02,234.94,13.06503387]
[1732708203227,13.06503387,235.0,234.92,13.06503387]
[1732708203430,13.06503387,235.03,234.95,13.06503387]
[1732708204235,13.06503387,235.03,234.84,13.06503387]
[1732708204236,13.06503387,235.01,234.93,13.06503387]
[1732708205043,13.06503387,235.03,234.95,13.06503387]
[1732708206242,13.06503387,234.98,234.91,13.06503387]
[1732708206734,13.06503387,234.99,234.92,13.06503387]
[1732708207331,13.06503387,235.04,234.97,13.06503387]
[1732708207534,13.06503387,235.05,234.98,13.06503387]
[1732708208236,13.06503387,235.07,234.99,13.06503387]
[1732708209053,13.57937357,235.08,235.01,13.06503387]
[1732708209228,0.5143397,235.08,235.05,13.06503387]
[1732708209433,0.5143397,235.08,235.06,13.06503387]
[1732708209632,0.5143397,235.08,235.07,13.06503387]
[1732708218146,0.5143397,235.08,235.07,49.90695174]
[1732708219552,0.5143397,235.08,235.07,13.06503387]
[1732708222152,0.5143397,235.08,235.05,13.06503387]
[1732708223257,0.5143397,235.08,234.9,1.80139164]
[1732708223461,13.06503387,235.01,234.81,13.579374]
[1732708223763,13.57937357,235.08,234.9,13.06503387]
[1732708223764,13.06503387,234.99,234.9,13.06503387]
[1732708224058,13.57937357,235.08,234.9,13.06503387]
[1732708224059,13.06503387,234.97,234.9,13.06503387]
[1732708224227,13.06503387,234.99,234.9,13.06503387]
[1732708224429,13.06503387,234.99,234.92,13.06503387]
[1732708224631,13.06503387,234.99,234.81,26.369374]
[1732708224846,13.06503387,234.97,234.89,13.06503387]
[1732708225053,13.06503387,234.97,234.81,12.79]
[1732708225256,13.06503387,234.99,234.91,13.06503387]
[1732708226353,13.06503387,235.03,234.97,13.06503387]
[1732708226938,20.0,235.05,234.97,13.06503387]
[1732708226939,13.06503387,235.05,234.97,13.06503387]
[1732708227147,13.06503387,235.07,234.99,13.06503387]
[1732708227359,13.06503387,235.06,234.99,13.06503387]
[1732708227940,0.5143397,235.08,235.02,13.06503387]
[1732708228144,0.5143397,235.08,235.07,13.06503387]
[1732708228752,0.5143397,235.08,235.05,13.06503387]
[1732708230635,0.5143397,235.08,234.96,13.06503387]
[1732708230636,0.5143397,235.08,235.07,13.06503387]
[1732708235364,0.5143397,235.08,235.07,49.90695174]
[1732708235975,13.06503387,235.25,235.07,62.69695174]
[1732708236262,13.06503387,235.25,235.18,13.06503387]
[1732708237067,13.06503387,235.27,235.18,13.06503387]
[1732708238268,13.06503387,235.23,235.16,13.06503387]
[1732708238573,13.06503387,235.21,235.14,13.06503387]
[1732708238769,13.06503387,235.23,235.16,13.06503387]
[1732708239844,13.06503387,235.25,235.16,13.06503387]
[1732708240049,13.06503387,235.23,235.16,13.06503387]
[1732708240568,13.06503387,235.27,235.2,13.06503387]
[1732708243172,13.06503387,235.28,235.21,13.06503387]
[1732708244059,0.5143397,235.31,235.21,13.06503387]
[1732708244060,13.06503387,235.29,235.21,13.06503387]
[1732708245067,13.06503387,235.29,235.22,13.06503387]
[1732708245453,13.57937357,235.31,235.24,13.06503387]
[1732708245771,0.5143397,235.31,235.25,13.06503387]
[1732708245968,0.5143397,235.31,235.27,13.06503387]
[1732708246859,0.5143397,235.31,235.29,13.06503387]
[1732708247865,0.5143397,235.31,235.3,13.06503387]
[1732708248247,0.5143397,235.31,235.2,13.06503387]
[1732708248248,0.5143397,235.31,235.28,13.06503387]
[1732708248774,13.06503387,235.29,235.21,13.06503387]
[1732708248949,13.06503387,235.27,235.2,13.06503387]
[1732708250246,13.57937357,235.31,235.24,13.06503387]
[1732708250751,0.5143397,235.31,235.29,13.06503387]
[1732708251468,0.5143397,235.31,235.3,13.06503387]
[1732708259477,0.5143397,235.31,235.3,36.84191787]
[1732708259663,0.5143397,235.31,235.21,25.62]
[1732708259969,0.5143397,235.31,235.3,13.06503387]
[1732708260281,0.5143397,235.31,235.28,13.06503387]
[1732708260454,0.5143397,235.31,235.26,13.06503387]
[1732708260867,0.5143397,235.31,235.24,13.06503387]
[1732708261993,0.5143397,235.31,235.27,13.06503387]
[1732708262161,0.5143397,235.31,235.28,13.06503387]
[1732708262868,0.5143397,235.31,235.2,13.06503387]
[1732708262869,0.5143397,235.31,235.3,13.06503387]
[1732708265179,0.5143397,235.31,235.3,36.84191787]
[1732708266625,0.5143397,235.31,235.3,49.90695174]
[1732708266959,0.5143397,235.31,235.3,36.84191787]
[1732708267156,0.5143397,235.31,235.3,13.06503387]
[1732708268262,0.5143397,235.31,235.3,36.84191787]
[1732708269292,0.5143397,235.31,235.2,38.68503387]
[1732708269581,0.5143397,235.31,235.27,13.06503387]
[1732708270579,0.5143397,235.31,235.25,13.06503387]
[1732708270782,0.5143397,235.31,235.12,38.41]
[1732708270783,13.57937357,235.31,235.23,13.06503387]
[1732708271178,0.5143397,235.31,235.24,13.06503387]
[1732708272083,0.5143397,235.31,235.25,13.06503387]
[1732708272779,13.57937357,235.31,235.23,13.06503387]
[1732708273998,0.5143397,235.31,235.25,13.06503387]
[1732708274182,0.5143397,235.31,235.28,13.06503387]
[1732708274687,0.5143397,235.31,235.2,13.06503387]
[1732708274688,0.5143397,235.31,235.3,13.06503387]
[1732708277488,0.5143397,235.31,235.3,49.90695174]
[1732708279292,13.06503387,235.48,235.33,20.0]
[1732708279497,13.06503387,235.48,235.4,13.06503387]
[1732708279881,13.06503387,235.47,235.39,13.06503387]
[1732708280198,13.06503387,235.43,235.37,13.06503387]
[1732708281192,13.06503387,235.41,235.33,13.06503387]
[1732708281990,13.06503387,235.4,235.32,13.06503387]
[1732708282690,13.06503387,235.39,235.31,13.06503387]
[1732708282899,13.06503387,235.38,235.3,13.06503387]
[1732708284577,13.06503387,235.37,235.08,6.68427658]
[1732708284784,13.06503387,235.32,235.25,13.06503387]
[1732708284995,13.06503387,235.3,235.22,13.06503387]
[1732708285180,13.06503387,235.28,235.2,13.06503387]
[1732708285489,13.06503387,235.26,235.18,13.06503387]
[1732708285697,13.06503387,235.24,235.18,13.06503387]
[1732708286700,13.06503387,235.24,235.17,13.06503387]
[1732708287005,13.06503387,235.18,235.1,13.06503387]
[1732708287301,13.06503387,235.17,235.09,13.06503387]
[1732708287796,13.06503387,235.15,235.07,13.06503387]
[1732708288506,20.86383102,235.15,235.07,20.86383102]
[1732708289003,21.7769401,235.29,235.03,20.86383102]
[1732708289004,20.86383102,235.12,235.03,20.86383102]
[1732708289196,20.86383102,235.16,235.09,20.86383102]
[1732708289686,20.86383102,235.14,235.07,20.86383102]
[1732708290091,20.86383102,235.15,235.08,20.86383102]
[1732708290483,20.86383102,235.15,235.07,20.86383102]
[1732708290897,20.86383102,235.16,235.09,20.86383102]
[1732708291099,1.7769401,235.29,234.99,20.0]
[1732708291100,20.86383102,235.2,235.12,20.86383102]
[1732708291489,20.86383102,235.19,235.11,20.86383102]
[1732708291816,20.86383102,235.18,235.1,20.86383102]
[1732708291999,20.86383102,235.2,235.12,20.86383102]
[1732708292199,20.86383102,235.2,235.13,20.86383102]
[1732708292401,20.86383102,235.2,235.02,12.79]
[1732708292402,20.86383102,235.2,235.12,20.86383102]
[1732708292584,1.7769401,235.29,235.12,20.86383102]
[1732708292585,20.86383102,235.19,235.12,20.86383102]
[1732708292906,20.86383102,235.21,235.14,20.86383102]
[1732708293088,20.86383102,235.25,235.17,20.86383102]
[1732708293407,20.86383102,235.34,235.24,20.86383102]
[1732708293593,20.86383102,235.36,235.28,20.86383102]
[1732708293906,92.76513736,235.51,235.27,20.0]
[1732708293907,1.82628107,235.47,235.27,20.0]
[1732708294081,20.86383102,235.39,235.32,20.86383102]
[1732708294283,1.82628107,235.47,235.26,20.86383102]
[1732708294284,20.86383102,235.34,235.26,20.86383102]
[1732708294912,20.86383102,235.32,235.25,20.86383102]
[1732708295206,20.86383102,235.32,235.23,20.86383102]
[1732708295406,20.86383102,235.3,235.23,20.86383102]
[1732708295610,20.86383102,235.29,235.22,20.86383102]
[1732708295812,20.86383102,235.29,235.13,23.776884]
[1732708295813,20.86383102,235.33,235.25,20.86383102]
[1732708296186,20.86383102,235.35,235.27,20.86383102]
[1732708296387,20.86383102,235.34,235.27,20.86383102]
[1732708296587,20.86383102,235.36,235.23,20.0]
[1732708296786,20.86383102,235.36,235.28,20.86383102]
[1732708297003,20.86383102,235.35,235.28,20.86383102]
[1732708297404,20.86383102,235.4,235.32,20.86383102]
[1732708297594,6.62042596,235.5,235.24,20.0]
[1732708297595,20.86383102,235.42,235.34,20.86383102]
[1732708298187,20.86383102,235.4,235.32,20.86383102]
[1732708298389,20.86383102,235.41,235.33,20.86383102]
[1732708298583,20.86383102,235.42,235.34,20.86383102]
[1732708299401,20.86383102,235.4,235.34,20.86383102]
[1732708300412,20.86383102,235.43,235.35,20.86383102]
[1732708301202,20.86383102,235.44,235.37,20.86383102]
[1732708301407,20.86383102,235.47,235.39,20.86383102]
[1732708302095,20.86383102,235.45,235.37,20.86383102]
[1732708303109,0.5143397,235.55,235.25,32.79]
[1732708303110,20.86383102,235.46,235.38,20.86383102]
[1732708303900,20.86383102,235.46,235.39,20.86383102]
[1732708304133,20.86383102,235.48,235.41,20.86383102]
[1732708304323,20.86383102,235.48,235.42,20.86383102]
[1732708304614,20.86383102,235.48,235.4,20.86383102]
[1732708308608,0.5143397,235.55,235.38,20.86383102]
[1732708308609,20.86383102,235.46,235.38,20.86383102]
[1732708308828,20.86383102,235.44,235.36,20.86383102]
[1732708309216,20.86383102,235.44,235.41,13.36855316]
[1732708309528,24.01628433,235.55,235.41,13.36855316]
[1732708309529,20.86383102,235.45,235.41,13.36855316]
[1732708309825,20.86383102,235.45,235.44,6.62693281]
[1732708310430,20.86383102,235.45,235.39,6.62693281]
[1732708311332,20.86383102,235.46,235.39,6.62693281]
[1732708312230,20.86383102,235.5,235.43,20.86383102]
[1732708312710,20.86383102,235.49,235.42,20.86383102]
[1732708313225,20.86383102,235.51,235.44,20.86383102]
[1732708313422,20.86383102,235.52,235.44,20.86383102]
[1732708314111,20.86383102,235.53,235.45,20.86383102]
[1732708314915,21.10323135,235.55,235.47,20.86383102]
[1732708316840,20.86383102,235.48,235.44,6.62693281]
[1732708317042,20.86383102,235.46,235.44,6.62693281]
[1732708317217,20.86383102,235.46,235.42,6.62693281]
[1732708317826,20.86383102,235.48,235.42,6.62693281]
[1732708318728,20.86383102,235.48,235.43,6.62693281]
[1732708319439,21.10323135,235.55,235.46,20.86383102]
[1732708319618,0.23940033,235.55,235.49,20.86383102]
[1732708320448,0.23940033,235.55,235.5,20.86383102]
[1732708320818,0.23940033,235.55,235.53,20.86383102]
[1732708321119,0.23940033,235.55,235.54,20.86383102]
[1732708322522,0.23940033,235.55,235.52,6.62693281]
[1732708322837,0.23940033,235.55,235.5,6.62693281]
[1732708323218,0.23940033,235.55,235.5,27.49076383]
[1732708323431,0.23940033,235.55,235.51,20.86383102]
[1732708323734,0.23940033,235.55,235.52,20.86383102]
[1732708323933,0.23940033,235.55,235.48,13.36855316]
[1732708323934,0.23940033,235.55,235.53,20.86383102]
[1732708324140,0.23940033,235.55,235.54,20.86383102]
[1732708324449,20.86383102,235.63,235.54,20.86383102]
[1732708324735,20.86383102,235.63,235.55,20.86383102]
[1732708324936,20.86383102,235.64,235.57,20.86383102]
[1732708325115,20.86383102,235.64,235.53,6.62693281]
[1732708325116,20.86383102,235.68,235.6,20.86383102]
[1732708325846,0.5143397,235.79,235.54,13.36855316]
[1732708325847,20.86383102,235.69,235.62,20.86383102]
[1732708326943,20.86383102,235.69,235.62,27.49076383]
[1732708327521,20.86383102,235.71,235.63,6.62693281]
[1732708327823,20.86383102,235.71,235.64,27.49076383]
[1732708328236,20.86383102,235.71,235.65,6.62693281]
[1732708328632,20.86383102,235.71,235.66,6.62693281]
[1732708328837,20.86383102,235.71,235.65,6.62693281]
[1732708329343,20.86383102,235.74,235.67,20.86383102]
[1732708329520,20.86383102,235.68,235.64,6.62693281]
[1732708329721,20.86383102,235.67,235.63,6.62693281]
[1732708330237,20.86383102,235.64,235.59,19.99548597]
[1732708330441,20.86383102,235.64,235.57,6.62693281]
[1732708330638,20.86383102,235.65,235.57,27.49076383]
[1732708330840,20.86383102,235.66,235.58,20.86383102]
[1732708331252,20.86383102,235.67,235.6,20.86383102]
[1732708331544,20.86383102,235.66,235.58,20.86383102]
[1732708331940,20.86383102,235.65,235.58,20.86383102]
[1732708332134,20.86383102,235.65,235.57,6.62693281]
[1732708332333,20.86383102,235.65,235.57,27.49076383]
[1732708332645,23.776884,235.77,235.56,27.49076383]
[1732708332646,20.86383102,235.63,235.56,27.49076383]
[1732708332947,20.86383102,235.63,235.56,20.86383102]
[1732708333350,20.86383102,235.6,235.55,6.62693281]
[1732708333649,20.86383102,235.57,235.53,6.62693281]
[1732708333845,20.86383102,235.56,235.52,6.62693281]
[1732708334162,20.86383102,235.58,235.52,6.62693281]
[1732708334737,20.86383102,235.62,235.54,20.86383102]
[1732708335325,20.86383102,235.62,235.54,27.49076383]
[1732708335944,20.86383102,235.68,235.6,20.86383102]
[1732708336150,20.86383102,235.68,235.62,20.86383102]
[1732708336836,20.86383102,235.7,235.62,20.86383102]
[1732708337043,20.86383102,235.92,235.68,20.86383102]
[1732708337044,20.86383102,235.75,235.68,20.86383102]
[1732708337348,20.86383102,235.77,235.7,20.86383102]
[1732708337644,20.86383102,235.8,235.73,20.86383102]
[1732708337940,20.86383102,235.82,235.73,20.86383102]
[1732708338143,20.86383102,235.81,235.73,20.86383102]
[1732708338529,20.86383102,235.83,235.76,20.86383102]
[1732708339551,20.86383102,235.82,235.75,20.86383102]
[1732708340339,20.86383102,235.84,235.76,20.86383102]
[1732708340551,20.86383102,235.85,235.78,20.86383102]
[1732708340850,15.0,235.94,235.79,20.86383102]
[1732708340851,20.86383102,235.87,235.79,20.86383102]
[1732708341248,20.86383102,235.88,235.8,20.86383102]
[1732708341449,20.86383102,235.89,235.81,20.86383102]
[1732708342533,20.86383102,235.93,235.85,20.86383102]
[1732708342735,15.0,235.94,235.8,20.86383102]
[1732708342736,20.86383102,235.89,235.8,20.86383102]
[1732708343136,20.86383102,235.85,235.76,20.86383102]
[1732708344145,20.86383102,235.87,235.78,20.86383102]
[1732708344747,20.86383102,235.87,235.8,20.86383102]
[1732708344929,20.86383102,235.9,235.83,20.86383102]
[1732708345131,35.86383102,235.94,235.86,20.86383102]
[1732708345329,35.86383102,235.94,235.8,20.86383102]
[1732708345330,15.0,235.94,235.88,20.86383102]
[1732708345947,15.0,235.94,235.89,20.86383102]
[1732708349430,20.86383102,235.98,235.91,20.86383102]
[1732708349637,20.86383102,236.0,235.91,20.86383102]
[1732708350247,20.86383102,235.98,235.91,20.86383102]
[1732708350548,20.86383102,236.0,235.93,20.86383102]
[1732708351139,20.86383102,235.98,235.91,20.86383102]
[1732708351365,20.86383102,235.98,235.89,20.86383102]
[1732708352156,20.86383102,235.98,235.91,20.86383102]
[1732708352753,21.37817072,236.02,235.94,20.86383102]
[1732708353136,0.5143397,236.02,235.96,20.86383102]
[1732708354352,20.86383102,235.97,235.89,20.86383102]
[1732708354540,20.86383102,235.96,235.88,20.86383102]
[1732708355159,20.86383102,235.97,235.9,20.86383102]
[1732708355362,20.86383102,235.98,235.9,20.86383102]
[1732708355652,0.5143397,236.02,235.8,33.65383102]
[1732708355653,20.86383102,235.99,235.92,20.86383102]
[1732708355837,20.86383102,236.01,235.94,20.86383102]
[1732708356031,0.5143397,236.02,235.96,20.86383102]
[1732708356233,0.5143397,236.02,235.99,20.86383102]
[1732708356436,0.5143397,236.02,235.94,20.0]
[1732708356640,0.5143397,236.02,235.95,20.86383102]
[1732708356839,0.5143397,236.02,235.96,20.86383102]
[1732708358338,0.5143397,236.02,235.97,20.86383102]
[1732708358960,0.5143397,236.02,235.99,20.86383102]
[1732708359556,20.86383102,236.07,235.97,20.0]
[1732708359762,20.86383102,236.07,235.99,20.86383102]
[1732708360137,20.86383102,236.07,235.97,20.0]
[1732708360461,4.97737154,236.22,235.9,29.757604]
[1732708360462,20.86383102,236.09,236.01,20.86383102]
[1732708360868,20.86383102,236.11,236.03,20.86383102]
[1732708361338,20.86383102,236.11,236.05,20.86383102]
[1732708362862,20.86383102,236.11,236.03,20.86383102]
[1732708363046,20.86383102,236.09,236.01,20.86383102]
[1732708364365,20.86383102,236.06,235.99,20.86383102]
[1732708364571,20.86383102,236.05,235.97,20.86383102]
[1732708364739,20.86383102,236.01,235.93,20.86383102]
[1732708364940,20.86383102,235.99,235.91,20.86383102]
[1732708365162,23.776884,236.03,235.86,20.86383102]
[1732708365368,23.776884,236.03,235.7,32.25066692]
[1732708365369,20.86383102,235.92,235.85,20.86383102]
[1732708365549,20.0,235.96,235.69,6.62693281]
[1732708365751,20.86383102,235.86,235.79,20.86383102]
[1732708365952,20.86383102,235.86,235.7,12.79]
[1732708365953,20.86383102,235.86,235.78,20.86383102]
[1732708366157,20.86383102,235.86,235.79,20.86383102]
[1732708366355,20.86383102,235.84,235.76,20.86383102]
[1732708366547,20.86383102,235.85,235.77,20.86383102]
[1732708367145,20.86383102,235.84,235.76,20.86383102]
[1732708367455,20.86383102,235.84,235.77,20.86383102]
[1732708367648,20.86383102,235.92,235.74,40.86383102]
[1732708367649,20.86383102,235.82,235.74,40.86383102]
[1732708367870,20.86383102,235.92,235.71,20.86383102]
[1732708367871,20.86383102,235.79,235.71,20.86383102]
[1732708368161,20.86383102,235.82,235.74,20.86383102]
[1732708368768,20.86383102,235.8,235.73,20.86383102]
[1732708369750,20.86383102,235.8,235.71,20.86383102]
[1732708370063,20.86383102,235.78,235.71,20.86383102]
[1732708370261,20.86383102,235.76,235.69,20.86383102]
[1732708370563,20.86383102,235.73,235.65,20.86383102]
[1732708371059,20.86383102,235.8,235.59,20.86383102]
[1732708371060,20.86383102,235.66,235.59,20.86383102]
[1732708371866,20.86383102,235.65,235.58,20.86383102]
[1732708372063,20.86383102,235.65,235.56,20.86383102]
[1732708372365,20.86383102,235.61,235.54,20.86383102]
[1732708373455,20.86383102,235.63,235.54,20.86383102]
[1732708374373,20.86383102,235.66,235.58,20.86383102]
[1732708374574,20.86383102,235.64,235.56,20.86383102]
[1732708375568,20.86383102,235.62,235.54,20.86383102]
[1732708376070,20.86383102,235.58,235.5,20.86383102]
[1732708376269,20.86383102,235.6,235.52,20.86383102]
[1732708378864,20.86383102,235.56,235.48,20.86383102]
[1732708380271,20.86383102,235.57,235.49,20.86383102]
[1732708380656,20.86383102,235.58,235.5,20.86383102]
[1732708381174,20.86383102,235.57,235.49,20.86383102]
[1732708381862,20.86383102,235.58,235.5,20.86383102]
[1732708382447,20.86383102,235.68,235.44,20.86383102]
[1732708382448,20.86383102,235.59,235.52,20.86383102]
[1732708382651,20.86383102,235.6,235.52,20.86383102]
[1732708382875,20.86383102,235.59,235.52,20.86383102]
[1732708383074,20.86383102,235.58,235.51,20.86383102]
[1732708383768,20.86383102,235.52,235.44,20.86383102]
[1732708384852,20.86383102,235.52,235.45,20.86383102]
[1732708385374,20.86383102,235.55,235.48,20.86383102]
[1732708385564,20.86383102,235.54,235.47,20.86383102]
[1732708386368,20.86383102,235.53,235.46,20.86383102]
[1732708386711,20.86383102,235.52,235.44,20.86383102]
[1732708386868,20.86383102,235.51,235.44,20.86383102]
[1732708387473,20.86383102,235.52,235.44,20.86383102]
[1732708387773,20.86383102,235.54,235.46,20.86383102]
[1732708389185,20.86383102,235.53,235.45,20.86383102]
[1732708390682,20.86383102,235.51,235.43,21.37817072]
[1732708390883,20.86383102,235.47,235.43,0.5143397]
[1732708391779,20.86383102,235.5,235.43,21.37817072]
[1732708391980,20.86383102,235.51,235.43,21.37817072]
[1732708392361,9.62941549,235.64,235.43,21.37817072]
[1732708392362,20.86383102,235.52,235.45,20.86383102]
[1732708392558,20.86383102,235.52,235.44,20.86383102]
[1732708394207,20.86383102,235.48,235.43,0.5143397]
[1732708394479,20.86383102,235.46,235.43,0.5143397]
[1732708394687,20.86383102,235.45,235.43,0.5143397]